fUST/lending_fUST_20250822
["ID","MTS","AMOUNT","RATE_DAILY","PERIOD"]
[380558948,1755808275266,-480.0,0.00024109,3]
[380558951,1755808275287,-7210.24,0.00024109,3]
[380558954,1755808275302,-480.0,0.00024109,3]
[380558956,1755808275321,-480.0,0.00024109,3]
[380558959,1755808275338,-494.32,0.00024109,3]
[380558962,1755808275355,-804.93,0.00024109,3]
[380558964,1755808275372,-685.15,0.00024109,3]
[380558967,1755808275388,-1714.15,0.00024109,3]
[380558969,1755808275402,-514.26887099,0.00024109,3]
[380558972,1755808275419,-4624.04,0.00024109,3]
[380558975,1755808275438,-2021.04,0.00024109,3]
[380558978,1755808275455,-697.43,0.00024109,3]
[380558979,1755808275468,-480.0,0.00024109,3]
[380558980,1755808275487,-850.67,0.00024109,3]
[380558981,1755808275501,-2191.48,0.00024109,3]
[380558982,1755808275518,-486.66,0.00024109,3]
[380558983,1755808275531,-676.79,0.00024109,3]
[380558984,1755808275545,-836.39,0.00024109,3]
[380558985,1755808275560,-955.0,0.0002411,2]
[380558986,1755808275574,-200.0,0.00024156,30]
[380558987,1755808275589,-200.0,0.00024156,30]
[380558988,1755808275603,-200.0,0.00024156,30]
[380558989,1755808275616,-200.0,0.00024156,30]
[380558990,1755808275632,-439.53183,0.00024173,2]
[380558991,1755808275645,-151.0,0.000242,6]
[380558992,1755808275660,-6299.68343825,0.00024293,2]
[380558993,1755808275674,-2793.01278711,0.00024293,2]
[380559053,1755808276387,-480.0,0.00019178,2]
[380559055,1755808276396,-480.0,0.00019178,2]
[380559057,1755808276405,-480.0,0.00019178,2]
[380559058,1755808276414,-809.00273683,0.00019451,2]
[380559060,1755808276423,-809.00273683,0.00019451,2]
[380559062,1755808276434,-809.00273683,0.00019451,2]
[380559064,1755808276445,-809.00273683,0.00019451,2]
[380559066,1755808276455,-809.00273683,0.00019451,2]
[380559068,1755808276464,-809.00273683,0.00019451,2]
[380559070,1755808276474,-809.00273683,0.00019451,2]
[380559072,1755808276483,-809.00273683,0.00019451,2]
[380559074,1755808276492,-480.0,0.00019452,2]
[380559075,1755808276501,-250.69,0.00019452,2]
[380559077,1755808276511,-480.0,0.00019726,2]
[380559079,1755808276520,-373.106403,0.0002,2]
[380559081,1755808276530,-197.44438,0.0002,2]
[380559083,1755808276539,-373.106403,0.0002,2]
[380559085,1755808276548,-480.0,0.0002,2]
[380559087,1755808276557,-197.44438,0.0002,2]
[380559089,1755808276567,-373.106403,0.00020273,2]
[380559091,1755808276578,-401.14764122,0.00020273,2]
[380559093,1755808276587,-197.44438,0.00020273,2]
[380559095,1755808276597,-373.106403,0.000207,2]
[380559097,1755808276606,-197.44438,0.000207,2]
[380559099,1755808276616,-2206.98721289,0.00024293,2]
[380559101,1755808276625,-5000.0,0.00024293,2]
[380559103,1755808276634,-5000.0,0.00024293,2]
[380559105,1755808276643,-5000.0,0.00024293,2]
[380559106,1755808276653,-46326.07,0.000243,2]
[380559108,1755808276662,-152.58231,0.00024308,7]
[380559110,1755808276671,-156.957591,0.00024342,3]
[380559112,1755808276680,-152.58231,0.00024342,3]
[380559114,1755808276690,-500.0,0.00024383,2]
[380559116,1755808276699,-956.81,0.00024383,3]
[380559118,1755808276708,-480.0,0.00024383,3]
[380559120,1755808276717,-968.44,0.00024383,3]
[380559122,1755808276726,-969.14,0.00024383,3]
[380559124,1755808276735,-763.78,0.00024383,3]
[380559126,1755808276745,-1230.62,0.00024383,3]
[380559128,1755808276754,-575.71,0.00024383,3]
[380559130,1755808276763,-480.0,0.00024383,3]
[380559132,1755808276772,-979.98,0.00024383,3]
[380559133,1755808276782,-502.39,0.00024383,3]
[380559135,1755808276791,-2606.28,0.00024383,3]
[380559137,1755808276801,-480.0,0.00024383,3]
[380559139,1755808276813,-947.83,0.00024383,3]
[380559141,1755808276821,-764.17,0.00024383,3]
[380559143,1755808276830,-572.68354745,0.00024383,3]
[380559145,1755808276840,-905.55,0.00024383,3]
[380559147,1755808276850,-1859.19,0.00024383,3]
[380559149,1755808276859,-1348.71,0.00024383,3]
[380559151,1755808276869,-1068.04,0.00024383,3]
[380559153,1755808276879,-1092.9,0.00024383,3]
[380559155,1755808276889,-1639.18,0.00024383,3]
[380559157,1755808276898,-4632.7,0.00024383,3]
[380559159,1755808276907,-480.0,0.00024383,3]
[380559161,1755808276916,-871.0,0.00024383,3]
[380559163,1755808276926,-1839.51,0.00024383,3]
[380559165,1755808276935,-943.69,0.00024383,3]
[380559166,1755808276946,-1279.12,0.00024383,3]
[380559168,1755808276955,-500.19,0.00024383,3]
[380559170,1755808276964,-644.77,0.00024383,3]
[380559172,1755808276974,-7368.41,0.00024383,3]
[380559174,1755808276983,-904.57,0.00024383,3]
[380559176,1755808276993,-2226.97,0.00024383,3]
[380559178,1755808277002,-589.33,0.00024383,3]
[380559180,1755808277011,-2931.52,0.00024383,3]
[380559182,1755808277020,-1477.5,0.00024383,3]
[380559184,1755808277030,-3237.28,0.00024383,3]
[380559186,1755808277039,-2381.45,0.00024383,3]
[380559188,1755808277049,-548.56,0.00024383,3]
[380559190,1755808277059,-480.0,0.00024383,3]
[380559192,1755808277068,-7210.24,0.00024383,3]
[380559194,1755808277078,-480.0,0.00024383,3]
[380559195,1755808277087,-480.0,0.00024383,3]
[380559197,1755808277096,-494.32,0.00024383,3]
[380559199,1755808277106,-804.93,0.00024383,3]
[380559201,1755808277115,-685.15,0.00024383,3]
[380559203,1755808277125,-1714.15,0.00024383,3]
[380559205,1755808277134,-4624.04,0.00024383,3]
[380559207,1755808277144,-2021.04,0.00024383,3]
[380559209,1755808277154,-697.43,0.00024383,3]
[380559211,1755808277163,-326.69,0.00024383,3]
[380559213,1755808277172,-850.67,0.00024383,3]
[380559215,1755808277182,-2191.48,0.00024383,3]
[380559217,1755808277192,-486.66,0.00024383,3]
[380559219,1755808277201,-676.79,0.00024383,3]
[380559221,1755808277210,-836.39,0.00024383,3]
[380559223,1755808277219,-955.0,0.00024384,2]
[380559225,1755808277229,-4000.0,0.00024386,4]
[380559227,1755808277238,-2529.11,0.000244,7]
[380559228,1755808277247,-860.0,0.00024496,2]
[380559230,1755808277257,-151.0,0.000245,9]
[380559232,1755808277266,-4000.0,0.00024508,2]
[380559234,1755808277275,-709.95,0.00024572,7]
[380559236,1755808277284,-152.58231,0.00024577,4]
[380559238,1755808277294,-8746.95122769,0.00024577,2]
[380559240,1755808277303,-160.0,0.00024591,5]
[380559242,1755808277312,-504.79646201,0.0002465,2]
[380559244,1755808277322,-10791.71535571,0.0002465,2]
[380559246,1755808277331,-500.0,0.00024657,2]
[380559248,1755808277340,-398.9,0.00024657,2]
[380559250,1755808277349,-956.81,0.00024657,3]
[380559252,1755808277359,-480.0,0.00024657,3]
[380559254,1755808277368,-968.44,0.00024657,3]
[380559256,1755808277377,-969.14,0.00024657,3]
[380559258,1755808277386,-763.78,0.00024657,3]
[380559259,1755808277395,-1230.62,0.00024657,3]
[380559261,1755808277405,-575.71,0.00024657,3]
[380559263,1755808277414,-480.0,0.00024657,3]
[380559265,1755808277424,-979.98,0.00024657,3]
[380559267,1755808277438,-502.39,0.00024657,3]
[380559269,1755808277447,-2606.28,0.00024657,3]
[380559271,1755808277456,-480.0,0.00024657,3]
[380559273,1755808277466,-947.83,0.00024657,3]
[380559275,1755808277475,-764.17,0.00024657,3]
[380559277,1755808277485,-905.55,0.00024657,3]
[380559279,1755808277494,-1859.19,0.00024657,3]
[380559281,1755808277504,-1348.71,0.00024657,3]
[380559283,1755808277514,-1068.04,0.00024657,3]
[380559285,1755808277523,-1092.9,0.00024657,3]
[380559287,1755808277533,-1639.18,0.00024657,3]
[380559289,1755808277542,-4632.7,0.00024657,3]
[380559290,1755808277551,-480.0,0.00024657,3]
[380559292,1755808277560,-871.0,0.00024657,3]
[380559294,1755808277570,-1839.51,0.00024657,3]
[380559296,1755808277579,-943.69,0.00024657,3]
[380559298,1755808277588,-1279.12,0.00024657,3]
[380559300,1755808277597,-500.19,0.00024657,3]
[380559302,1755808277606,-644.77,0.00024657,3]
[380559304,1755808277615,-7368.41,0.00024657,3]
[380559306,1755808277624,-904.57,0.00024657,3]
[380559308,1755808277634,-2226.97,0.00024657,3]
[380559310,1755808277644,-589.33,0.00024657,3]
[380559312,1755808277654,-2931.52,0.00024657,3]
[380559314,1755808277663,-1477.5,0.00024657,3]
[380559316,1755808277672,-3237.28,0.00024657,3]
[380559318,1755808277681,-2381.45,0.00024657,3]
[380559320,1755808277694,-548.56,0.00024657,3]
[380559322,1755808277704,-480.0,0.00024657,3]
[380559324,1755808277713,-7210.24,0.00024657,3]
[380559326,1755808277723,-480.0,0.00024657,3]
[380559328,1755808277732,-480.0,0.00024657,3]
[380559329,1755808277741,-494.32,0.00024657,3]
[380559331,1755808277751,-804.93,0.00024657,3]
[380559333,1755808277760,-685.15,0.00024657,3]
[380559335,1755808277769,-1714.15,0.00024657,3]
[380559337,1755808277778,-2021.04,0.00024657,3]
[380559339,1755808277787,-4624.04,0.00024657,3]
[380559341,1755808277796,-697.43,0.00024657,3]
[380559343,1755808277805,-850.67,0.00024657,3]
[380559345,1755808277814,-2191.48,0.00024657,3]
[380559347,1755808277824,-486.66,0.00024657,3]
[380559349,1755808277833,-676.79,0.00024657,3]
[380559351,1755808277842,-836.39,0.00024657,3]
[380559353,1755808277851,-150.0,0.00024658,2]
[380559355,1755808277861,-150.0,0.00024658,2]
[380559357,1755808277870,-200.0,0.00024658,15]
[380559358,1755808277880,-955.0,0.00024658,2]
[380559360,1755808277889,-500.0,0.00024658,2]
[380559362,1755808277899,-161.62,0.00024666,7]
[380559364,1755808277908,-643.22,0.00024669,2]
[380559366,1755808277918,-709.95,0.00024672,7]
[380559368,1755808277927,-306.0,0.00024676,2]
[380559370,1755808277936,-153.0,0.00024676,2]
[380559372,1755808277949,-316.0025745,0.00024676,2]
[380559374,1755808277958,-309.9403112,0.00024676,2]
[380559376,1755808277967,-403.25,0.000247,7]
[380559378,1755808277977,-709.95,0.00024772,7]
[380559380,1755808277986,-3213.83867397,0.00024774,2]
[380559381,1755808277995,-161.62,0.00024778,7]
[380559382,1755808278005,-6420.47,0.000248,7]
[380559383,1755808278014,-198466.457931,0.000248,2]
[380559384,1755808278024,-823.0,0.00024809,2]
[380559385,1755808278033,-160.94,0.00024815,7]
[380559386,1755808278042,-161.50770988,0.00024815,7]
[380559387,1755808278051,-152.58231,0.00024826,2]
[380559388,1755808278060,-161.62,0.00024861,7]
[380559389,1755808278069,-709.95,0.00024872,7]
[380559390,1755808278079,-12500.0,0.00024873,7]
[380559391,1755808278089,-3388.98482049,0.00024899,7]
[380559392,1755808278099,-652.54969297,0.00024899,7]
[380559393,1755808278108,-153.196318,0.00024899,7]
[380559394,1755808278117,-151.0,0.00024899,7]
[380559395,1755808278127,-151.0,0.000249,7]
[380559396,1755808278136,-164.64074896,0.000249,2]
[380559397,1755808278145,-164.64074894,0.000249,2]
[380559398,1755808278154,-60255.28258979,0.000249,2]
[380559399,1755808278278,-350.943936,0.00021095,2]
[380559564,1755808280020,234.5813,0.00018603,2]
[380560883,1755808293927,205.01747755,0.00019067,2]
[380562356,1755808310695,165.0,7.5e-07,2]
[380567257,1755808416582,188.41253449,0.00019078,2]
[380567259,1755808611849,302.45563732,0.00019015,2]
[380567263,1755809134059,-300.0,0.00019177,2]
[380567264,1755809134089,-300.0,0.00019177,2]
[380567265,1755809134120,-1200.0,0.00019177,2]
[380567266,1755809134149,-480.0,0.00019178,2]
[380567267,1755809134336,-480.0,0.00019178,2]
[380567268,1755809134366,-480.0,0.00019178,2]
[380567269,1755809134394,-480.0,0.00019178,2]
[380567270,1755809134422,-480.0,0.00019178,2]
[380567271,1755809134451,-480.0,0.00019178,2]
[380567272,1755809134575,-480.0,0.00019178,2]
[380567273,1755809134604,-480.0,0.00019178,2]
[380567274,1755809134632,-480.0,0.00019178,2]
[380567275,1755809134660,-480.0,0.00019178,2]
[380567276,1755809134689,-522.88,0.00019178,2]
[380567277,1755809134804,-480.0,0.00019178,2]
[380567278,1755809134832,-480.0,0.00019178,2]
[380567279,1755809134860,-563.65568704,0.00019178,2]
[380567280,1755809134889,-480.0,0.00019178,2]
[380567281,1755809134916,-480.0,0.00019178,2]
[380567282,1755809135023,-460.0,0.00019178,2]
[380567283,1755809135051,-483.80575541,0.00019178,2]
[380567284,1755809135077,-480.0,0.00019178,2]
[380567285,1755809135104,-480.0,0.00019178,2]
[380567286,1755809135132,-480.0,0.00019178,2]
[380567287,1755809135247,-480.0,0.00019178,2]
[380567288,1755809135277,-480.0,0.00019178,2]
[380567289,1755809135306,-440.78088497,0.00019178,2]
[380567290,1755809135336,-480.0,0.00019178,2]
[380567291,1755809135378,-480.0,0.00019178,2]
[380567292,1755809135500,-480.0,0.00019178,2]
[380567293,1755809135528,-500.0,0.00019178,2]
[380567294,1755809135555,-600.64,0.00019178,2]
[380567295,1755809135581,-480.0,0.00019178,2]
[380567296,1755809135608,-425.26123143,0.00019178,2]
[380567297,1755809135751,-480.0,0.00019178,2]
[380567298,1755809135777,-485.77559508,0.00019178,2]
[380567299,1755809135806,-483.03732113,0.00019178,2]
[380567300,1755809135834,-480.0,0.00019178,2]
[380567301,1755809135863,-480.0,0.00019178,2]
[380567302,1755809135949,-480.0,0.00019178,2]
[380567303,1755809135977,-407.22176049,0.00019178,2]
[380567304,1755809136004,-480.0,0.00019178,2]
[380567305,1755809136032,-480.0,0.00019178,2]
[380567306,1755809136059,-480.0,0.00019178,2]
[380567307,1755809136214,-398.42053699,0.00019178,2]
[380567308,1755809136242,-480.0,0.00019178,2]
[380567309,1755809136270,-480.0,0.00019178,2]
[380567310,1755809136298,-480.0,0.00019178,2]
[380567311,1755809136325,-480.0,0.00019178,2]
[380567312,1755809136657,-480.0,0.00019178,2]
[380567313,1755809136687,-480.0,0.00019178,2]
[380567314,1755809136718,-480.0,0.00019178,2]
[380567315,1755809136746,-480.0,0.00019178,2]
[380567316,1755809136775,-480.0,0.00019178,2]
[380567317,1755809136868,-480.0,0.00019178,2]
[380567318,1755809136896,-949.6,0.00019178,2]
[380567319,1755809136923,-480.0,0.00019178,2]
[380567320,1755809136954,-480.0,0.00019178,2]
[380567321,1755809137099,-480.0,0.00019178,2]
[380567322,1755809137128,-480.0,0.00019178,2]
[380567323,1755809137157,-480.0,0.00019178,2]
[380567324,1755809137188,-546.45,0.00019178,2]
[380567325,1755809137218,-207.51,0.00019178,2]
[380567326,1755809137286,-612.08,0.00019178,2]
[380567327,1755809137316,-480.0,0.00019178,2]
[380567328,1755809137345,-480.0,0.00019178,2]
[380567329,1755809137374,-480.0,0.00019178,2]
[380567330,1755809137402,-415.84,0.00019178,2]
[380567331,1755809137488,-64.16,0.00019178,2]
[380567332,1755809137517,-480.0,0.00019178,2]
[380567333,1755809137544,-489.99,0.00019178,2]
[380567334,1755809137571,-480.0,0.00019178,2]
[380567335,1755809137598,-480.0,0.00019178,2]
[380567336,1755809137759,-1321.88,0.00019178,2]
[380567337,1755809137787,-1057.25,0.00019178,2]
[380567338,1755809137886,-480.0,0.00019178,2]
[380567339,1755809137915,-480.0,0.00019178,2]
[380567340,1755809137943,-480.0,0.00019178,2]
[380567341,1755809138062,-1695.31,0.00019178,2]
[380567342,1755809138220,-1609.38,0.00019178,2]
[380567343,1755809138247,-480.0,0.00019178,2]
[380567344,1755809138275,-341.24,0.00019178,2]
[380567345,1755809138411,-138.76,0.00019178,2]
[380567346,1755809138441,-480.0,0.00019178,2]
[380567347,1755809138470,-480.0,0.00019178,2]
[380567348,1755809138499,-480.0,0.00019178,2]
[380567349,1755809138527,-510.51,0.00019178,2]
[380567350,1755809138555,-231.68107663,0.00019178,2]
[380567351,1755809138649,-358.09784674,0.00019178,2]
[380567352,1755809138676,-480.0,0.00019178,2]
[380567353,1755809138705,-480.0,0.00019178,2]
[380567354,1755809138739,-27.45430652,0.00019178,2]
[380567355,1755809138942,-2308.89569348,0.00019178,2]
[380567356,1755809139140,-578.52,0.00019178,2]
[380567357,1755809139168,-480.0,0.00019178,2]
[380567358,1755809139317,-919.75,0.00019178,2]
[380567359,1755809139346,-480.0,0.00019178,2]
[380567360,1755809139443,-553.28,0.00019178,2]
[380567361,1755809139471,-1013.53,0.00019178,2]
[380567362,1755809139611,-1334.09,0.00019178,2]
[380567363,1755809139718,-1928.16397324,0.00019178,2]
[380567364,1755809139749,-403.65602676,0.00019178,2]
[380567365,1755809139776,-480.0,0.00019178,2]
[380567366,1755809139803,-472.9535073,0.00019178,2]
[380567367,1755809139830,-480.0,0.00019178,2]
[380567368,1755809139858,-480.0,0.00019178,2]
[380567369,1755809139900,-480.0,0.00019178,2]
[380567370,1755809139926,-480.0,0.00019178,2]
[380567371,1755809139955,-692.85,0.00019178,2]
[380567372,1755809139982,-582.92,0.00019178,2]
[380567373,1755809140078,-615.31,0.00019178,2]
[380567374,1755809140105,-480.0,0.00019178,2]
[380567375,1755809140132,-480.0,0.00019178,2]
[380567376,1755809140160,-383.62,0.00019178,2]
[380567377,1755809140272,-1082.14,0.00019178,2]
[380567378,1755809140299,-480.0,0.00019178,2]
[380567379,1755809140326,-738.75,0.00019178,2]
[380567380,1755809140408,-1618.64,0.00019178,2]
[380567381,1755809140435,-350.98,0.00019178,2]
[380567382,1755809140540,-1060.76,0.00019178,2]
[380567383,1755809140567,-1210.73,0.00019178,2]
[380567384,1755809140705,-480.0,0.00019178,2]
[380567385,1755809140737,-480.0,0.00019178,2]
[380567386,1755809140765,-480.0,0.00019178,2]
[380567387,1755809140793,-480.0,0.00019178,2]
[380567388,1755809140821,-282.93,0.00019178,2]
[380567389,1755809140998,-253.84557168,0.00019178,2]
[380567390,1755809141029,-340.29442832,0.00019178,2]
[380567391,1755809141058,-480.0,0.00019178,2]
[380567392,1755809141087,-1011.48114336,0.00019178,2]
[380567393,1755809141171,-452.45442832,0.00019178,2]
[380567394,1755809141190,-615.31,0.00019178,2]
[380567395,1755809141208,-268.68442832,0.00019178,2]
[380567396,1755809141217,-211.31557168,0.00019178,2]
[380567397,1755809141235,-480.0,0.00019178,2]
[380567398,1755809141266,-95.42442832,0.00019178,2]
[380567399,1755809141293,-480.0,0.00019178,2]
[380567400,1755809141321,-543.44,0.00019178,2]
[380567401,1755809141349,-480.0,0.00019178,2]
[380567402,1755809141377,-214.37,0.00019178,2]
[380567403,1755809141405,-480.0,0.00019178,2]
[380567404,1755809141490,-254.66557168,0.00019178,2]
[380567405,1755809141504,-480.0,0.00019178,2]
[380567406,1755809141534,-275.85442832,0.00019178,2]
[380567407,1755809141561,-628.37978551,0.000192,2]
[380567408,1755809141588,-480.0,0.00019452,2]
[380567409,1755809141614,-480.0,0.00019452,2]
[380567410,1755809141642,-480.0,0.00019452,2]
[380567411,1755809141740,-411.37578617,0.00019452,2]
[380567412,1755809141754,-68.62421383,0.00019452,2]
[380567413,1755809141763,-480.0,0.00019452,2]
[380567414,1755809141772,-496.03,0.00019452,2]
[380567415,1755809141781,-367.08578617,0.00019452,2]
[380567416,1755809141816,-79.65421383,0.00019452,2]
[380567417,1755809141843,-480.0,0.00019452,2]
[380567418,1755809141872,-480.0,0.00019452,2]
[380567419,1755809141899,-480.0,0.00019452,2]
[380567420,1755809141926,-467.02,0.00019452,2]
[380567421,1755809141954,-480.0,0.00019452,2]
[380567422,1755809142060,-261.83578617,0.00019452,2]
[380567423,1755809142092,-218.16421383,0.00019452,2]
[380567424,1755809142120,-480.0,0.00019452,2]
[380567425,1755809142149,-480.0,0.00019452,2]
[380567426,1755809142178,-402.09,0.00019452,2]
[380567427,1755809142328,-480.0,0.00019452,2]
[380567428,1755809142356,-399.49157234,0.00019452,2]
[380567429,1755809142466,-80.50842766,0.00019452,2]
[380567430,1755809142475,-256.81578617,0.00019452,2]
[380567431,1755809142511,-223.18421383,0.00019452,2]
[380567432,1755809142540,-480.0,0.00019452,2]
[380567433,1755809142568,-480.0,0.00019452,2]
[380567434,1755809142596,-480.0,0.00019452,2]
[380567435,1755809142624,-480.0,0.00019452,2]
[380567436,1755809142651,-233.63157234,0.00019452,2]
[380567437,1755809142707,-246.36842766,0.00019452,2]
[380567438,1755809142740,-949.6,0.00019452,2]
[380567439,1755809142770,-480.0,0.00019452,2]
[380567440,1755809142799,-480.0,0.00019452,2]
[380567441,1755809142828,-208.06314468,0.00019452,2]
[380567442,1755809142926,-271.93685532,0.00019452,2]
[380567443,1755809142955,-480.0,0.00019452,2]
[380567444,1755809142984,-546.45,0.00019452,2]
[380567445,1755809143012,-819.59,0.00019452,2]
[380567446,1755809143039,-284.04628936,0.00019452,2]
[380567447,1755809143212,-195.95371064,0.00019452,2]
[380567448,1755809143240,-480.0,0.00019452,2]
[380567449,1755809143267,-480.0,0.00019452,2]
[380567450,1755809143294,-480.0,0.00019452,2]
[380567451,1755809143322,-489.99,0.00019452,2]
[380567452,1755809143349,-268.11257872,0.00019452,2]
[380567453,1755809143483,-211.88742128,0.00019452,2]
[380567454,1755809143512,-1321.88,0.00019452,2]
[380567455,1755809143540,-875.21515744,0.00019452,2]
[380567456,1755809143684,-182.03484256,0.00019452,2]
[380567457,1755809143715,-480.0,0.00019452,2]
[380567458,1755809143742,-480.0,0.00019452,2]
[380567459,1755809143769,-480.0,0.00019452,2]
[380567460,1755809143926,-1695.31,0.00019452,2]
[380567461,1755809144057,-1609.38,0.00019452,2]
[380567462,1755809144085,-480.0,0.00019452,2]
[380567463,1755809144114,-341.24,0.00019452,2]
[380567464,1755809144175,-138.76,0.00019452,2]
[380567465,1755809144204,-263.92,0.00019452,2]
[380567466,1755809144233,-480.0,0.00019452,2]
[380567467,1755809144262,-480.0,0.00019452,2]
[380567468,1755809144290,-510.51,0.00019452,2]
[380567469,1755809144318,-480.0,0.00019452,2]
[380567470,1755809144475,-2336.35,0.00019452,2]
[380567471,1755809144643,-578.52,0.00019452,2]
[380567472,1755809144673,-480.0,0.00019452,2]
[380567473,1755809144702,-919.75,0.00019452,2]
[380567474,1755809144734,-457.43541056,0.00019452,2]
[380567475,1755809144856,-128.58917888,0.00019452,2]
[380567476,1755809144884,-1013.53,0.00019452,2]
[380567477,1755809145099,-806.67817759,0.00019452,2]
[380567478,1755809145136,-2140.76817759,0.00019452,2]
[380567479,1755809145354,-718.46364482,0.00019452,2]
[380567480,1755809145381,-480.0,0.00019452,2]
[380567481,1755809145410,-480.0,0.00019452,2]
[380567482,1755809145438,-480.0,0.00019452,2]
[380567483,1755809145467,-203.07271036,0.00019452,2]
[380567484,1755809145547,-276.92728964,0.00019452,2]
[380567485,1755809145556,-692.85,0.00019452,2]
[380567486,1755809145565,-615.31,0.00019452,2]
[380567487,1755809145574,-480.0,0.00019452,2]
[380567488,1755809145583,-115.26333503,0.00019452,2]
[380567489,1755809145614,-364.73666497,0.00019452,2]
[380567490,1755809145643,-1465.76,0.00019452,2]
[380567491,1755809145669,-480.0,0.00019452,2]
[380567492,1755809145737,-258.88333503,0.00019452,2]
[380567493,1755809145771,-479.86666497,0.00019452,2]
[380567494,1755809145800,-1618.64,0.00019452,2]
[380567495,1755809145937,-1411.74,0.00019452,2]
[380567496,1755809145966,-965.79,0.00019452,2]
[380567497,1755809146039,-244.94,0.00019452,2]
[380567498,1755809146067,-480.0,0.00019452,2]
[380567499,1755809146095,-480.0,0.00019452,2]
[380567500,1755809146124,-480.0,0.00019452,2]
[380567501,1755809146153,-480.0,0.00019452,2]
[380567502,1755809146279,-877.07,0.00019452,2]
[380567503,1755809146308,-480.0,0.00019452,2]
[380567504,1755809146430,-2347.93,0.00019452,2]
[380567505,1755809146498,-786.74,0.00019452,2]
[380567506,1755809146507,-543.44,0.00019452,2]
[380567507,1755809146516,-56.47874559,0.00019452,2]
[380567508,1755809146552,-423.52125441,0.00019452,2]
[380567509,1755809146580,-480.0,0.00019452,2]
[380567510,1755809146608,-1010.52,0.00019452,2]
[380567511,1755809147366,480.0,0.00019178,2]
[380567512,1755809147402,480.0,0.00019452,2]
[380567513,1755809147921,211.91749118,0.00019178,2]
[380567514,1755809147942,268.08250882,0.00019178,2]
[380567515,1755809148188,528.67550141,0.00019452,2]
[380567516,1755809153194,480.0,0.00019178,2]
[380567517,1755809153459,480.0,0.00019452,2]
[380567518,1755809157143,343.84,0.00019178,2]
[380567519,1755809157514,480.0,0.00019178,2]
[380567520,1755809157796,480.0,0.00019452,2]
[380567521,1755809159124,1939.40198977,0.00019452,2]
[380567522,1755809159149,3060.59801023,0.00019452,2]
[380567523,1755809159175,480.0,0.00019178,2]
[380567524,1755809159504,480.0,0.00019452,2]
[380567525,1755809168708,480.0,0.00019178,2]
[380567526,1755809168967,499.40198977,0.00019452,2]
[380567527,1755809168990,60.92801023,0.00019452,2]
[380567528,1755809169349,480.0,0.00019178,2]
[380567529,1755809169606,480.0,0.00019452,2]
[380567530,1755809169804,480.0,0.00019178,2]
[380567531,1755809170101,480.0,0.00019452,2]
[380567532,1755809170899,480.0,0.00019178,2]
[380567533,1755809171149,480.0,0.00019452,2]
[380567534,1755809171945,480.0,0.00019178,2]
[380567535,1755809172347,480.0,0.00019452,2]
[380567536,1755809174341,1099.07198977,0.00019452,2]
[380567537,1755809174364,3900.92801023,0.00019452,2]
[380567538,1755809182206,234.68371323,0.00019452,2]
[380567539,1755809184591,432.1,0.00019178,2]
[380567540,1755809191399,432.28827654,0.00019452,2]
[380567541,1755809191424,4567.71172346,0.00019452,2]